bitfinex/quotes_SOLUSD_20220113
["timestamp","ask_amount","ask_price","bid_price","bid_amount"]
[1642114602024,3.89222144,147.25,147.2,67.19]
[1642114602223,5.55906593,147.28,147.21,76.82]
[1642114602623,5.55906593,147.28,147.21,78.46999521]
[1642114602823,5.55906593,147.31,147.22,1.64999521]
[1642114603023,5.55906593,147.31,147.23,9.63]
[1642114603223,5.55906593,147.31,147.23,87.0041]
[1642114603422,5.55906593,147.31,147.23,94.86109521]
[1642114603823,2.716,147.33,147.23,94.86109521]
[1642114604022,1.715,147.35,147.24,56.6935]
[1642114604223,1.715,147.35,147.25,9.63]
[1642114604423,1.715,147.35,147.25,11.27999521]
[1642114604824,3.88920158,147.34,147.25,11.27999521]
[1642114605024,2.715,147.33,147.25,11.27999521]
[1642114605325,2.715,147.33,147.27,10.1825]
[1642114606625,2.715,147.35,147.27,10.1825]
[1642114606828,2.215,147.35,147.27,10.1825]
[1642114607325,3.88932402,147.34,147.27,10.1825]
[1642114608127,2.215,147.35,147.27,10.1825]
[1642114609428,3.88894782,147.34,147.27,10.1825]
[1642114609629,3.88894782,147.34,147.27,10.2225]
[1642114610229,2.215,147.35,147.27,10.2225]
[1642114610629,2.215,147.35,147.27,10.2625]
[1642114612329,2.215,147.35,147.27,19.8925]
[1642114612631,10.1831,147.36,147.28,12.897]
[1642114613730,10.1831,147.36,147.28,11.1971292]
[1642114614431,10.1831,147.36,147.28,10.182]
[1642114614629,26.1721,147.37,147.28,10.182]
[1642114614630,26.1721,147.37,147.28,33.4658]
[1642114614831,26.1721,147.37,147.28,33.5258]
[1642114619834,23.4571,147.37,147.28,33.5258]
[1642114620437,23.4571,147.37,147.29,9.63]
[1642114620639,23.4571,147.37,147.3,10.1806]
[1642114620839,23.4571,147.37,147.3,44.496]
[1642114623044,23.4571,147.37,147.3,50.496]
[1642114623242,23.4571,147.37,147.3,44.496]
[1642114625052,23.4571,147.37,147.3,44.576]
[1642114628175,23.4571,147.37,147.3,34.3954]
[1642114628375,2.714,147.36,147.3,34.3954]
[1642114629582,36.3531,147.37,147.3,34.3954]
[1642114629784,33.6391,147.37,147.3,34.3954]
[1642114632584,33.6391,147.37,147.3,9.71]
[1642114633285,2.714,147.36,147.3,9.71]
[1642114633588,80.0866,147.36,147.3,0.08]
[1642114635191,71.07581813,147.35,147.3,0.08]
[1642114635391,10.184,147.34,147.3,0.08]
[1642114635593,33.3191,147.34,147.3,0.08]
[1642114636193,23.1351,147.34,147.3,0.08]
[1642114637598,33.3191,147.34,147.3,0.08]
[1642114641132,67.19,147.33,147.3,0.08]
[1642114643333,77.3747,147.33,147.3,0.08]
[1642114643635,80.0897,147.33,147.3,0.08]
[1642114644835,77.3747,147.33,147.3,0.08]
[1642114645636,10.1847,147.33,147.3,0.08]
[1642114646038,23.1351,147.34,147.3,0.08]
[1642114651941,23.6451,147.34,147.3,0.08]
[1642114654741,23.3851,147.34,147.3,0.08]
[1642114655543,2.715,147.36,147.3,0.08]
[1642114655740,2.965,147.36,147.3,0.08]
[1642114655942,0.25,147.36,147.3,0.08]
[1642114656642,0.25,147.36,147.17,7.08899041]
[1642114656643,1.64999521,147.35,147.17,7.08899041]
[1642114656842,1.64999521,147.35,147.16,5.85302284]
[1642114656843,0.08,147.3,147.16,5.85302284]
[1642114657047,12.346,147.29,147.16,5.85302284]
[1642114657253,23.78158825,147.29,147.16,5.85302284]
[1642114657444,13.08558346,147.28,147.16,5.85302284]
[1642114657646,67.19,147.26,147.11,47.4125]
[1642114657846,10.1942,147.2,147.11,47.4125]
[1642114658083,10.7042,147.2,147.11,47.4125]
[1642114658645,77.8942,147.2,147.09,517.83034886]
[1642114658845,77.3876,147.15,147.09,508.20034886]
[1642114659047,77.8976,147.15,147.09,508.20034886]
[1642114659247,4.36799521,147.14,147.09,508.20034886]
[1642114659446,67.19,147.13,147.07,0.08159379]
[1642114659650,67.19,147.11,147.07,0.08159379]
[1642114659849,10.2023,147.09,147.05,5.85302284]
[1642114660048,67.19,147.08,146.98,76.38099024]
[1642114660250,69.91,147.08,146.98,0.94369024]
[1642114660451,70.42,147.08,146.98,0.94369024]
[1642114661253,67.19,147.06,146.98,0.94369024]
[1642114661453,67.19,147.04,146.98,0.94369024]
[1642114661852,67.7,147.04,146.98,0.94369024]
[1642114662452,10.2057,147.03,146.98,0.94369024]
[1642114662653,12.9257,147.03,146.98,0.94369024]
[1642114662857,13.4357,147.03,146.98,0.94369024]
[1642114663057,80.6257,147.03,146.98,0.94369024]
[1642114663360,77.9057,147.03,146.98,0.94369024]
[1642114663557,83.9057,147.03,146.98,0.94369024]
[1642114664058,16.7157,147.03,146.98,0.94369024]
[1642114664261,26.3457,147.03,146.98,0.00369024]
[1642114664459,1.64999521,147.02,146.98,0.00369024]
[1642114664660,10.2089,147.0,146.98,0.00369024]
[1642114664862,19.8389,147.0,146.98,0.00369024]
[1642114665163,20.3489,147.0,146.98,0.00369024]
[1642114665362,49.64999521,146.99,146.98,0.00369024]
[1642114665589,51.231,146.99,146.98,0.00369024]
[1642114666294,0.01630976,146.98,146.91,3.89655328]
[1642114666695,0.01630976,146.98,146.91,4.14655328]
[1642114668309,10.2099,146.97,146.92,3.89655328]
[1642114668509,10.7199,146.97,146.92,3.89655328]
[1642114671635,10.7199,146.97,146.92,3.91655328]
[1642114675041,16.7199,146.97,146.92,3.91655328]
[1642114675642,26.3499,146.97,146.92,3.91655328]
[1642114676543,26.3499,146.97,146.92,0.02]
[1642114676944,2.722,146.96,146.92,0.02]
[1642114677143,10.2136,146.94,146.92,0.02]
[1642114677344,44.722,146.93,146.92,0.02]
[1642114677543,42.51,146.93,146.92,0.02]
[1642114677944,42.51,146.93,146.86,3.89655328]
[1642114678345,2.723,146.92,146.86,3.89655328]
[1642114678546,10.7237,146.92,146.86,3.89655328]
[1642114679645,10.7237,146.92,146.83,9.74957612]
[1642114679846,24.3257,146.92,146.83,9.74957612]
[1642114680050,2.723,146.91,146.83,9.74957612]
[1642114680249,10.2155,146.89,146.83,9.74957612]
[1642114680450,10.7255,146.89,146.83,9.74957612]
[1642114680647,10.7255,146.89,146.83,3.89655328]
[1642114681849,10.7255,146.89,146.81,5.85302284]
[1642114682052,10.7255,146.89,146.81,6.36302284]
[1642114683651,10.7255,146.89,146.82,3.89655328]
[1642114684053,10.7255,146.89,146.82,4.40655328]
[1642114685650,10.4655,146.89,146.82,4.40655328]
[1642114685849,10.4655,146.89,146.83,3.89655328]
[1642114686052,10.4655,146.89,146.83,4.15655328]
[1642114686852,0.25,146.89,146.83,4.15655328]
[1642114687055,2.723,146.9,146.83,4.40655328]
[1642114687256,11.67509521,146.97,146.83,4.40655328]
[1642114687257,2.723,146.96,146.84,3.89655328]
[1642114687458,2.723,146.96,146.84,125.18364849]
[1642114687856,2.723,146.96,146.85,1.64999521]
[1642114688090,10.2115,146.95,146.85,8.15999521]
[1642114688290,2.722,146.97,146.85,8.15999521]
[1642114688491,0.51,146.97,146.86,1.64999521]
[1642114688891,8.972,146.99,146.86,75.34999521]
[1642114689090,2.972,146.99,146.86,85.56009521]
[1642114689298,13.1808,146.99,146.87,1.64999521]
[1642114689492,13.1808,146.99,146.87,12.05777463]
[1642114689892,13.1808,146.99,146.88,1.64999521]
[1642114690093,13.1808,146.99,146.88,8.15999521]
[1642114690292,10.2088,146.99,146.89,67.19]
[1642114690492,10.2088,146.99,146.89,75.34999521]
[1642114690993,10.4688,146.99,146.89,75.34999521]
[1642114691592,10.4688,146.99,146.9,3.89777942]
[1642114691796,10.2088,146.99,146.9,3.89777942]
[1642114691993,10.2088,146.99,146.9,10.40777942]
[1642114692494,10.4588,146.99,146.9,10.40777942]
[1642114692994,10.7188,146.99,146.9,10.40777942]
[1642114693192,10.7188,146.99,146.91,3.89777942]
[1642114693692,10.7188,146.99,146.91,12.05777463]
[1642114693693,0.26,146.99,146.91,12.05777463]
[1642114694093,13.1894,147.01,146.91,12.05777463]
[1642114694303,10.4674,147.01,146.91,12.05777463]
[1642114694594,10.2074,147.01,146.91,79.24777463]
[1642114694793,10.2074,147.01,146.92,3.89777942]
[1642114694993,10.2074,147.01,146.92,10.40777942]
[1642114695193,10.2074,147.01,146.93,1.64999521]
[1642114695598,10.2074,147.01,146.93,8.15999521]
[1642114695805,10.206,147.03,146.93,12.05777463]
[1642114696102,2.721,147.02,146.94,1.64999521]
[1642114696502,2.971,147.02,146.94,8.15999521]
[1642114696702,0.25,147.02,146.94,8.15999521]
[1642114697104,0.25,147.02,146.94,2.15999521]
[1642114697304,10.4561,147.02,146.94,2.15999521]
[1642114697706,10.4561,147.02,146.94,8.15999521]
[1642114697904,10.4561,147.02,146.94,2.15999521]
[1642114698105,10.4561,147.02,146.95,1.64999521]
[1642114698604,10.4561,147.02,146.95,1.90999521]
[1642114699806,12.9263,147.04,146.95,2.15999521]
[1642114700005,13.1763,147.04,146.95,8.15999521]
[1642114700207,13.1763,147.04,146.96,1.64999521]
[1642114700609,13.1763,147.04,146.96,2.15999521]
[1642114701107,13.1763,147.04,146.96,8.15999521]
[1642114701506,13.4363,147.04,146.96,8.15999521]
[1642114702009,13.1863,147.04,146.96,8.15999521]
[1642114702408,2.721,147.04,146.96,8.15999521]
[1642114702608,2.721,147.05,146.97,1.64999521]
[1642114702808,10.2039,147.06,146.97,1.64999521]
[1642114703008,10.2039,147.06,146.97,8.15999521]
[1642114703210,10.2039,147.06,146.97,75.34999521]
[1642114703408,10.2039,147.06,146.98,1.64999521]
[1642114703608,10.2039,147.06,146.98,8.15999521]
[1642114704510,10.4539,147.06,146.98,8.15999521]
[1642114705009,10.4539,147.06,146.98,75.34999521]
[1642114705211,10.7139,147.06,146.98,75.34999521]
[1642114705512,10.4639,147.06,146.98,75.34999521]
[1642114706618,0.26,147.06,146.98,75.34999521]
[1642114706855,0.51,147.06,146.98,75.34999521]
[1642114707049,10.14,147.07,146.98,75.34999521]
[1642114707847,20.3427,147.07,146.98,75.34999521]
[1642114708647,10.7127,147.07,146.98,75.34999521]
[1642114710550,10.7127,147.07,146.98,73.7]
[1642114713156,10.7127,147.07,146.98,6.51]
[1642114713454,10.7127,147.07,146.98,0.25]
[1642114713653,10.7127,147.07,146.98,6.25]
[1642114714256,10.7127,147.07,146.98,0.25]
[1642114714454,10.7127,147.07,146.97,29.7211]
[1642114715655,10.4527,147.07,146.97,29.7211]
[1642114715855,10.4527,147.07,146.97,31.37109521]
[1642114716257,10.4527,147.07,146.97,29.7211]
[1642114717063,10.7127,147.07,146.97,39.9231]
[1642114717257,10.7127,147.07,146.97,107.9331]
[1642114717657,10.7127,147.07,146.98,3.89534353]
[1642114718057,10.7127,147.07,146.98,10.40534353]
[1642114718959,10.7127,147.07,146.98,10.14534353]
[1642114719364,10.7127,147.07,146.98,6.25]
[1642114719560,10.7127,147.07,146.98,0.25]
[1642114719859,10.7127,147.07,146.97,33.35825232]
[1642114720260,10.7127,147.07,146.97,29.4611]
[1642114720461,10.4527,147.07,146.97,29.4611]
[1642114720762,0.25,147.07,146.98,68.01]
[1642114720961,0.25,147.09,146.98,6.25]
[1642114721362,8.97,147.1,146.98,6.25]
[1642114721561,8.97,147.1,146.98,6.51]
[1642114721761,8.97,147.1,146.98,0.51]
[1642114721963,9.23,147.1,146.98,0.25]
[1642114722163,10.2021,147.08,146.97,29.7211]
[1642114722567,10.4621,147.08,146.97,29.7211]
[1642114722766,10.4621,147.08,147.0,1.94776174]
[1642114722966,2.72,147.07,147.0,8.45776174]
[1642114723366,2.98,147.07,147.0,8.45776174]
[1642114723567,3.23,147.07,147.0,6.51]
[1642114723769,0.51,147.07,147.0,6.51]
[1642114723967,2.72,147.06,147.0,6.51]
[1642114724170,12.9232,147.07,147.0,6.51]
[1642114724371,0.25,147.06,147.0,6.51]
[1642114724574,0.25,147.06,147.0,0.51]
[1642114724776,0.25,147.06,147.0,6.51]
[1642114724977,0.25,147.06,147.0,6.0]
[1642114725376,10.2035,147.06,146.99,7.94776174]
[1642114725591,2.72,147.05,146.99,7.94776174]
[1642114725791,68.01,147.04,146.97,1.94776174]
[1642114725992,68.52,147.04,146.97,1.94776174]
[1642114726591,78.15,147.04,146.97,1.94776174]
[1642114726792,78.15,147.04,146.95,1.94776174]
[1642114726991,10.2082,146.99,146.95,7.94776174]
[1642114727192,36.7483,147.03,146.95,1.94776174]
[1642114727491,0.51,146.99,146.95,1.94776174]
[1642114727891,0.51,146.99,146.94,1.94776174]
[1642114728092,2.721,146.98,146.94,1.94776174]
[1642114728491,3.231,146.98,146.94,1.94776174]
[1642114728691,0.51,146.98,146.94,1.94776174]
[1642114728990,0.25,146.98,146.94,1.94776174]
[1642114729594,3.231,146.99,146.94,1.94776174]
[1642114731391,13.4392,146.99,146.94,1.94776174]
[1642114732895,81.4492,146.99,146.94,1.94776174]
[1642114733097,87.4492,146.99,146.93,1.94776174]
[1642114733900,19.4392,146.99,146.93,0.2458079]
[1642114734300,19.4392,146.99,146.88,3.89715232]
[1642114734500,19.4392,146.99,146.88,4.40715232]
[1642114734700,19.4392,146.99,146.88,10.40715232]
[1642114734899,19.4392,146.99,146.88,4.40715232]
[1642114735101,19.1892,146.99,146.88,4.40715232]
[1642114735300,19.1892,146.99,146.89,3.89768391]
[1642114735502,19.1892,146.99,146.89,4.40768391]
[1642114735700,19.1892,146.99,146.89,28.65558391]
[1642114735901,19.1892,146.99,146.89,34.65558391]
[1642114736101,18.9292,146.99,146.89,34.65558391]
[1642114736500,19.1792,146.99,146.89,34.65558391]
[1642114736901,16.4582,146.99,146.9,3.89768391]
[1642114737202,16.4582,146.99,146.9,10.40768391]
[1642114738005,2.722,146.98,146.9,10.40768391]
[1642114738404,13.4414,146.98,146.9,10.40768391]
[1642114738803,10.4594,146.98,146.9,4.40768391]
[1642114739004,0.25,146.98,146.9,4.40768391]
[1642114739405,0.25,146.98,146.91,3.89768391]
[1642114739605,0.25,147.0,146.91,10.40768391]
[1642114739806,2.721,146.99,146.91,10.40768391]
[1642114740006,2.971,146.99,146.91,10.40768391]
[1642114740208,10.4582,146.99,146.91,10.40768391]
[1642114740808,10.4582,146.99,146.91,78.41768391]
[1642114741008,10.7182,146.99,146.91,78.41768391]
[1642114741209,10.7182,146.99,146.91,74.52]
[1642114742909,10.7182,146.99,146.91,68.52]
[1642114746116,10.7182,146.99,146.91,74.52]
[1642114749220,10.7182,146.99,146.91,68.52]
[1642114749621,10.7182,146.99,146.91,74.52]
[1642114750521,26.2222,147.03,146.91,74.52]
[1642114750721,2.722,147.03,146.93,68.01]
[1642114750932,2.721,147.05,146.93,77.64]
[1642114751229,2.721,147.05,146.93,84.15]
[1642114751428,2.721,147.05,146.94,24.8411]
[1642114751629,2.721,147.05,146.94,96.74823913]
[1642114751847,2.721,147.05,146.94,97.25823913]
[1642114752048,24.4994,147.04,146.94,103.25823913]
[1642114752249,34.7042,147.04,146.94,103.25823913]
[1642114752449,34.7042,147.04,146.95,3.89713913]
[1642114752450,34.4442,147.04,146.95,3.89713913]
[1642114752647,10.4548,147.04,146.95,3.89713913]
[1642114752849,10.4548,147.04,146.95,4.40713913]
[1642114753051,10.4548,147.04,146.95,10.40713913]
[1642114754051,10.7148,147.04,146.95,10.40713913]
[1642114754551,10.7148,147.04,146.95,6.51]
[1642114754751,10.7148,147.04,146.95,0.51]
[1642114754952,10.7148,147.04,146.94,103.25825232]
[1642114756051,10.7148,147.04,146.94,97.25825232]
[1642114756250,10.7148,147.04,146.94,103.25825232]
[1642114756454,10.7148,147.04,146.95,3.89619444]
[1642114756651,10.7148,147.04,146.95,5.54618965]
[1642114756851,10.7148,147.04,146.95,12.05618965]
[1642114757953,10.7148,147.04,146.95,8.15999521]
[1642114758553,10.7148,147.04,146.95,2.15999521]
[1642114758753,71.0,147.03,146.92,10.2048]
[1642114758956,68.01,147.0,146.91,7.50301805]
[1642114759153,68.01,146.98,146.84,8.77461034]
[1642114759352,80.362,146.97,146.84,8.77461034]
[1642114759553,9.63,146.96,146.84,8.77461034]
[1642114759755,4.24670474,146.95,146.82,24.4281]
[1642114759953,4.75670474,146.95,146.82,24.4281]
[1642114760355,3.232,146.95,146.82,24.4281]
[1642114760554,3.232,146.95,146.83,3.89913591]
[1642114761054,3.232,146.95,146.83,27.77153591]
[1642114761254,10.2127,146.93,146.83,27.77153591]
[1642114761459,10.4627,146.93,146.83,28.03153591]
[1642114761653,10.7227,146.93,146.83,28.03153591]
[1642114762256,10.7227,146.93,146.84,3.89913591]
[1642114762454,10.7227,146.93,146.84,4.15913591]
[1642114762656,16.7227,146.93,146.84,3.89913591]
[1642114762856,10.2154,146.89,146.84,3.89913591]
[1642114763056,10.7254,146.89,146.84,3.89913591]
[1642114763958,10.7254,146.89,146.79,3.89913591]
[1642114764358,10.7254,146.89,146.79,10.14913591]
[1642114764960,10.7254,146.89,146.79,10.40913591]
[1642114765160,10.7254,146.89,146.79,10.15913591]
[1642114765760,10.7254,146.89,146.8,3.89913591]
[1642114765961,10.2167,146.87,146.8,10.15913591]
[1642114766361,10.7267,146.87,146.8,10.15913591]
[1642114766963,10.7267,146.87,146.8,10.40913591]
[1642114767362,10.7267,146.87,146.8,6.51]
[1642114767562,10.7267,146.87,146.8,0.51]
[1642114767762,10.7267,146.87,146.78,30.0699]
[1642114768961,10.7267,146.87,146.79,3.90019298]
[1642114769364,10.7267,146.87,146.79,10.41019298]
[1642114771166,10.7267,146.87,146.8,3.90019298]
[1642114771568,10.7267,146.87,146.8,10.41019298]
[1642114772969,10.7267,146.87,146.8,6.51]
[1642114774177,10.7267,146.87,146.8,0.51]
[1642114774479,10.7267,146.87,146.78,30.0699]
[1642114774677,10.7267,146.87,146.81,3.90005604]
[1642114774876,10.7267,146.87,146.75,9.63]
[1642114775277,70.734,146.86,146.75,9.63]
[1642114775477,10.2195,146.83,146.71,19.8493]
[1642114775677,2.725,146.82,146.72,23.2227]
[1642114776078,3.235,146.82,146.72,23.2227]
[1642114776277,3.235,146.82,146.72,29.2227]
[1642114776477,3.235,146.82,146.72,29.4727]
[1642114776980,13.4551,146.82,146.72,29.4727]
[1642114777180,10.7301,146.82,146.72,29.4727]
[1642114777780,10.7301,146.82,146.72,29.7327]
[1642114779009,16.7301,146.82,146.72,29.7327]
[1642114779211,10.7301,146.82,146.72,29.7327]
[1642114783518,10.7301,146.82,146.72,29.4727]
[1642114783919,81.4651,146.82,146.72,29.4727]
[1642114784219,87.4651,146.82,146.68,9.63]
[1642114784419,68.01,146.8,146.67,23.46]
[1642114784623,78.2335,146.78,146.67,23.46]
[1642114785020,2.726,146.77,146.67,23.46]
[1642114785221,78.7435,146.78,146.67,23.46]
[1642114785421,0.51,146.77,146.67,23.46]
[1642114785620,68.52,146.78,146.67,29.71]
[1642114785820,68.52,146.78,146.67,37.51455586]
[1642114786022,10.2237,146.77,146.67,37.51455586]
[1642114786221,68.01,146.76,146.67,14.05455586]
[1642114786620,68.52,146.76,146.67,6.25]
[1642114786821,68.52,146.76,146.67,0.25]
[1642114787021,68.52,146.76,146.67,6.0]
[1642114787225,10.2253,146.75,146.67,6.0]
[1642114787426,10.2253,146.75,146.67,6.25]
[1642114787623,10.7353,146.75,146.67,0.25]
[1642114788623,10.7353,146.75,146.66,31.481]
[1642114790525,10.7353,146.75,146.66,31.221]
[1642114800167,10.4753,146.75,146.66,31.221]
[1642114800368,10.4753,146.75,146.66,31.481]
[1642114801466,10.7353,146.75,146.66,31.481]
[1642114801665,10.7353,146.75,146.66,31.231]
[1642114801866,10.7353,146.75,146.61,19.8563]
[1642114802066,27.6401,146.74,146.61,9.63]
[1642114802267,10.2279,146.71,146.61,9.63]
[1642114802466,10.4879,146.71,146.61,9.63]
[1642114802666,10.7379,146.71,146.61,9.63]
[1642114803268,2.727,146.7,146.61,9.63]
[1642114803468,13.4656,146.7,146.61,9.63]
[1642114804470,13.4656,146.7,146.61,16.14]
[1642114804774,19.0716,146.7,146.61,6.0]
[1642114804970,25.0716,146.7,146.6,30.4592]
[1642114805369,34.7016,146.7,146.6,6.0]
[1642114805571,34.7016,146.7,146.54,10.032]
[1642114805769,10.2346,146.62,146.53,9.63]
[1642114805969,19.1026,146.62,146.53,9.63]
[1642114806771,19.1026,146.62,146.52,24.4132]
[1642114806970,19.1026,146.62,146.52,30.4132]
[1642114807571,19.1026,146.62,146.52,24.4132]
[1642114807769,19.1026,146.62,146.5,9.63]
[1642114807973,10.2373,146.58,146.5,9.63]
[1642114808177,18.5493,146.58,146.5,9.63]
[1642114808375,19.0593,146.58,146.46,5.64439901]
[1642114808671,19.0593,146.58,146.45,19.39346734]
[1642114808672,2.73,146.57,146.45,19.39346734]
[1642114809070,3.24,146.57,146.45,9.63]
[1642114809473,15.53348075,146.51,146.45,9.63]
[1642114809671,36.5079615,146.51,146.45,9.88]
[1642114809971,37.0179615,146.51,146.45,15.88]
[1642114810272,37.0179615,146.51,146.45,6.25]
[1642114810472,37.0179615,146.51,146.45,8.06533505]
[1642114810676,37.0179615,146.51,146.45,14.32533505]
[1642114810873,37.0179615,146.51,146.45,14.06533505]
[1642114812074,37.0179615,146.51,146.45,6.25]
[1642114812876,37.0179615,146.51,146.45,6.51]
[1642114813076,36.7679615,146.51,146.45,6.26]
[1642114813278,37.0179615,146.51,146.45,0.26]
[1642114813474,37.0179615,146.51,146.45,6.0]
[1642114813874,37.0179615,146.51,146.45,6.26]
[1642114814475,21.48448075,146.51,146.45,0.26]
[1642114814676,2.73,146.55,146.45,6.51]
[1642114814878,31.0669615,146.48,146.45,6.25]
[1642114815077,31.0669615,146.48,146.46,6.06439994]
[1642114815478,31.0669615,146.48,146.46,12.57439994]
[1642114816078,3.71090463,146.48,146.47,75.2371]
[1642114816278,0.00090463,146.48,146.47,75.2371]
[1642114816480,9.88,146.58,146.48,71.0]
[1642114816679,2.73,146.57,146.49,68.01]
[1642114816880,9.63,146.62,146.49,68.01]
[1642114816881,2.729,146.61,146.49,68.01]
[1642114817080,2.729,146.61,146.49,74.52]
[1642114817477,2.729,146.61,146.49,6.51]
[1642114817780,2.729,146.61,146.5,10.235]
[1642114817979,2.729,146.61,146.5,16.745]
[1642114819078,2.979,146.61,146.5,16.745]
[1642114819378,13.2141,146.61,146.5,0.25]
[1642114819580,13.2141,146.61,146.48,0.51]
[1642114819777,13.2141,146.61,146.48,74.52]
[1642114819977,13.2241,146.61,146.48,80.38094123]
[1642114820883,47.3757,146.61,146.48,12.12094123]
[1642114821281,47.6257,146.61,146.48,12.12094123]
[1642114821779,47.6257,146.61,146.47,19.8669]
[1642114821780,53.6257,146.61,146.47,19.8669]
[1642114821979,53.6257,146.61,146.47,25.8669]
[1642114823107,53.6257,146.61,146.47,9.63]
[1642114826083,53.6257,146.61,146.47,9.89]
[1642114827384,68.01,146.6,146.47,9.63]
[1642114827584,10.2398,146.54,146.44,5.86094123]
[1642114827786,10.2398,146.54,146.44,36.36364123]
[1642114827985,10.7498,146.54,146.44,36.36364123]
[1642114828784,10.7498,146.54,146.44,30.2527]
[1642114829185,2.73,146.53,146.44,40.4923]
[1642114829592,2.98,146.53,146.44,40.4923]
[1642114830386,2.98,146.53,146.44,108.5023]
[1642114830685,2.98,146.53,146.44,108.7523]
[1642114830884,0.25,146.53,146.44,108.7523]
[1642114831091,2.98,146.55,146.44,108.7523]
[1642114831288,25.9963,146.57,146.44,118.4523]
[1642114831490,0.25,146.56,146.44,118.4523]
[1642114831889,2.73,146.57,146.44,118.4523]
[1642114832086,0.25,146.57,146.44,118.4523]
[1642114832288,2.73,146.59,146.44,130.16024775]
[1642114832491,2.73,146.59,146.44,129.65024775]
[1642114832887,24.2179,146.58,146.44,129.65024775]
[1642114833088,2.73,146.57,146.44,129.65024775]
[1642114833690,2.98,146.57,146.44,117.9423]
[1642114833888,2.98,146.57,146.44,118.1923]
[1642114834189,2.98,146.57,146.44,118.4523]
[1642114834987,0.25,146.57,146.44,118.4523]
[1642114835189,2.73,146.56,146.44,118.4523]
[1642114835589,0.25,146.56,146.44,118.4523]
[1642114835789,2.73,146.55,146.44,118.4523]
[1642114835989,0.25,146.55,146.44,118.4523]
[1642114837190,13.4763,146.59,146.44,118.4523]
[1642114837390,36.0925,146.59,146.44,118.4523]
[1642114838191,25.8562,146.59,146.44,118.4523]
[1642114838591,25.5962,146.59,146.44,118.4523]
[1642114839996,25.8562,146.59,146.44,118.4523]
[1642114842003,25.5962,146.59,146.44,118.4523]
[1642114842197,2.98,146.59,146.44,118.4523]
[1642114842397,2.98,146.59,146.44,124.31324123]
[1642114842999,2.98,146.59,146.44,136.02118898]
[1642114843397,2.98,146.59,146.45,7.81601299]
[1642114843599,2.98,146.59,146.52,10.234]
[1642114844000,2.98,146.59,146.48,111.7531]
[1642114844199,2.98,146.59,146.48,49.7431]
[1642114844902,2.98,146.59,146.48,117.7531]
[1642114845101,2.98,146.59,146.51,10.2349]
[1642114845623,2.73,146.59,146.51,10.4949]
[1642114846422,2.99,146.59,146.48,49.7431]
[1642114846626,10.934,146.59,146.48,15.63]
[1642114847023,10.934,146.59,146.44,15.49094123]
[1642114847024,79.194,146.59,146.44,15.49094123]
[1642114847224,24.5464,146.58,146.44,21.49094123]
[1642114847523,2.73,146.57,146.44,21.49094123]
[1642114847722,24.8528,146.56,146.44,21.49094123]
[1642114847923,2.73,146.55,146.44,21.49094123]
[1642114848124,12.9691,146.55,146.45,10.2386]
[1642114848324,13.4791,146.55,146.45,10.2386]
[1642114848523,13.4791,146.55,146.45,16.2386]
[1642114849225,13.4791,146.55,146.45,6.0]
[1642114849424,13.4791,146.55,146.45,9.90897221]
[1642114849623,13.4791,146.55,146.45,3.90897221]
[1642114849925,19.4791,146.55,146.45,9.90897221]
[1642114850524,19.4791,146.55,146.45,6.0]
[1642114850926,19.4791,146.55,146.43,33.49277221]
[1642114853430,87.4891,146.55,146.43,33.49277221]
[1642114853730,87.4891,146.55,146.43,29.5838]